bitfinex/quotes_SOLUSD_20240925
["timestamp","ask_amount","ask_price","bid_price","bid_amount"]
[1727271788546,0.9226664,150.24,150.2,23.3011]
[1727271788748,17.01751771,150.29,150.2,16.6435]
[1727271788749,20.0,150.28,150.2,16.6435]
[1727271788924,6.6551,150.26,150.21,6.6569]
[1727271789739,6.6555,150.25,150.2,23.3009]
[1727271791855,6.6555,150.25,150.2,16.6435]
[1727271792032,6.6555,150.25,150.2,23.3011]
[1727271792234,0.9226664,150.28,150.2,23.3011]
[1727271792235,7.5787664,150.24,150.2,23.3011]
[1727271792428,0.9226664,150.23,150.2,16.6435]
[1727271793661,0.9226664,150.23,150.19,0.25729419]
[1727271793837,0.9226664,150.22,150.19,0.25729419]
[1727271794033,20.0,150.25,150.19,0.25729419]
[1727271794350,20.0,150.22,150.19,6.91549419]
[1727271794552,20.0,150.23,150.2,6.6577]
[1727271794739,20.9226664,150.23,150.19,0.25729419]
[1727271794943,20.0,150.23,150.19,0.25729419]
[1727271795438,6.6561,150.24,150.19,16.90239419]
[1727271795637,6.6561,150.24,150.2,6.6577]
[1727271796167,6.6556,150.25,150.2,6.6577]
[1727271796343,0.9226664,150.26,150.19,16.90239419]
[1727271796344,7.5789664,150.24,150.19,23.56049419]
[1727271796550,6.6563,150.24,150.19,23.56049419]
[1727271796753,6.6563,150.24,150.2,6.6577]
[1727271798439,6.6563,150.24,150.19,23.56049419]
[1727271799570,6.6563,150.24,150.2,6.6577]
[1727271800073,6.6551,150.26,150.22,6.6569]
[1727271800246,6.6547,150.27,150.22,6.6569]
[1727271800444,20.9226664,150.26,150.22,6.6569]
[1727271800847,26.6543,150.28,150.23,6.6564]
[1727271801538,20.0,150.28,150.24,6.656]
[1727271801887,20.0,150.28,150.22,17.3623802]
[1727271801888,6.6551,150.26,150.22,6.4516]
[1727271802040,0.9226664,150.25,150.22,6.4516]
[1727271802563,0.9226664,150.25,150.22,13.1084]
[1727271804351,7.5782664,150.25,150.22,6.4516]
[1727271804552,0.9226664,150.24,150.21,32.4268]
[1727271804764,6.6556,150.25,150.21,32.4268]
[1727271804963,6.6547,150.27,150.22,6.6565]
[1727271805268,0.9226664,150.26,150.22,6.6565]
[1727271809042,6.6547,150.27,150.22,6.6565]
[1727271809248,20.0,150.28,150.23,6.656]
[1727271809465,6.6551,150.26,150.22,6.6567]
[1727271809647,36.6329,150.31,150.21,43.3375802]
[1727271809648,0.9226664,150.25,150.21,39.0841]
[1727271809847,6.6557,150.25,150.21,39.0841]
[1727271810376,20.9226664,150.29,150.21,39.0841]
[1727271810553,6.6552,150.26,150.21,39.0841]
[1727271810879,0.9226664,150.25,150.21,39.0841]
[1727271811365,6.6551,150.26,150.21,39.0841]
[1727271811778,6.6551,150.26,150.22,6.6568]
[1727271811949,6.6548,150.27,150.22,6.6568]
[1727271813383,26.91924452,150.31,150.24,16.6394]
[1727271813568,0.12493968,150.32,150.27,10.9107802]
[1727271813871,0.12493968,150.32,150.29,6.6537]
[1727271814385,0.12493968,150.32,150.26,15.4829]
[1727271814386,6.6534,150.3,150.26,15.4829]
[1727271816685,0.9226664,150.29,150.26,15.4829]
[1727271816978,0.9226664,150.29,150.25,23.2939]
[1727271819969,6.6534,150.3,150.25,23.2939]
[1727271821392,0.12493968,150.32,150.26,6.655]
[1727271821595,20.0,150.31,150.28,6.6541]
[1727271821968,0.12493968,150.32,150.27,16.636]
[1727271822169,0.12493968,150.32,150.28,6.6538]
[1727271825275,0.12493968,150.32,150.29,6.6537]
[1727271826476,1.04760608,150.32,150.28,6.6541]
[1727271827377,1.04760608,150.32,150.27,23.2905]
[1727271827578,0.12493968,150.32,150.27,23.2905]
[1727271828007,1.04760608,150.32,150.23,17.4232802]
[1727271828304,1.04760608,150.32,150.24,16.6397]
[1727271828476,6.6538,150.29,150.24,23.2953]
[1727271828882,1.04760608,150.32,150.24,16.6397]
[1727271829091,6.6534,150.3,150.25,6.6554]
[1727271829596,0.9226664,150.29,150.25,6.6554]
[1727271829795,7.5764664,150.29,150.24,23.2954]
[1727271829995,0.9226664,150.28,150.24,23.2954]
[1727271830501,6.6538,150.29,150.24,23.2954]
[1727271830795,6.6538,150.29,150.24,16.6397]
[1727271831098,6.6538,150.29,150.25,6.6554]
[1727271831302,0.12493968,150.32,150.26,6.655]
[1727271831471,6.6533,150.3,150.25,6.6554]
[1727271832476,1.04760608,150.32,150.25,6.6554]
[1727271832806,6.6538,150.29,150.24,23.2956]
[1727271832973,6.6538,150.29,150.25,6.6555]
[1727271833173,6.6534,150.3,150.25,6.6555]
[1727271833774,6.6542,150.28,150.24,16.6397]
[1727271834197,6.6539,150.29,150.24,23.2956]
[1727271835504,6.6539,150.29,150.22,48.4448]
[1727271835505,6.6548,150.27,150.22,21.8174]
[1727271835701,0.9226664,150.26,150.22,21.8174]
[1727271836788,6.6548,150.27,150.23,6.6564]
[1727271837201,20.0,150.28,150.24,6.6556]
[1727271838316,6.6542,150.28,150.24,6.6556]
[1727271839107,6.6542,150.28,150.23,23.2966]
[1727271839403,26.6541,150.29,150.25,6.6555]
[1727271840383,26.6541,150.29,150.24,6.6558]
[1727271840589,0.9226664,150.28,150.24,6.6558]
[1727271841698,7.5772664,150.28,150.23,23.2966]
[1727271842105,6.6546,150.28,150.24,6.6558]
[1727271844018,26.6538,150.29,150.25,6.6555]
[1727271844228,20.0,150.3,150.26,6.6548]
[1727271844429,0.12493968,150.32,150.23,6.656]
[1727271844430,6.6542,150.28,150.23,6.656]
[1727271844903,6.6542,150.28,150.22,31.8026]
[1727271845110,7.5773664,150.27,150.23,6.6562]
[1727271845421,6.6547,150.27,150.22,38.4594]
[1727271846329,6.6547,150.27,150.23,6.6563]
[1727271847434,20.0,150.3,150.22,15.1609]
[1727271847725,20.9226664,150.29,150.25,6.6554]
[1727271848032,7.5765664,150.29,150.24,23.2954]
[1727271848224,0.9226664,150.28,150.24,23.2954]
[1727271848744,0.9226664,150.28,150.22,15.1609]
[1727271849106,0.9226664,150.27,150.22,15.1609]
[1727271849829,7.5773664,150.27,150.22,6.6567]
[1727271850133,6.6555,150.25,150.21,16.6427]
[1727271850304,0.9226664,150.24,150.21,16.6427]
[1727271851542,6.6555,150.25,150.21,23.2999]
[1727271851959,0.9226664,150.24,150.21,16.6427]
[1727271852258,6.6555,150.25,150.21,23.2999]
[1727271854838,6.6552,150.26,150.21,23.2999]
[1727271856325,0.9226664,150.25,150.21,23.2999]
[1727271856655,6.6568,150.23,150.19,6.91539419]
[1727271856823,6.656,150.24,150.19,6.91539419]
[1727271857355,20.0,150.27,150.19,6.91539419]
[1727271857356,6.6565,150.23,150.19,0.25729419]
[1727271857944,20.0,150.25,150.19,0.25729419]
[1727271858152,20.0,150.25,150.19,11.16807439]
[1727271858356,6.6565,150.23,150.19,11.16807439]
[1727271858940,6.6574,150.21,150.19,0.25729419]
[1727271859146,0.9226664,150.2,150.19,0.25729419]
[1727271859360,0.9226664,150.24,150.19,0.25729419]
[1727271859865,6.6574,150.21,150.19,0.25729419]
[1727271860071,0.9226664,150.2,150.19,0.25729419]
[1727271860646,7.5803664,150.2,150.19,0.25729419]
[1727271860955,6.6577,150.2,150.19,0.25729419]
[1727271861557,6.6572,150.22,150.19,0.25729419]
[1727271861746,20.0,150.23,150.21,10.9107802]
[1727271862365,20.9226664,150.23,150.21,10.9107802]
[1727271863137,20.9226664,150.23,150.19,0.25729419]
[1727271863345,0.9226664,150.23,150.19,0.25729419]
[1727271863540,23.776884,150.25,150.21,10.9107802]
[1727271863734,6.6564,150.23,150.21,10.9107802]
[1727271864365,6.6564,150.23,150.19,11.16807439]
[1727271864751,6.6573,150.21,150.19,0.25729419]
[1727271864948,0.9226664,150.2,150.19,0.25729419]
[1727271865166,66.6304,150.27,150.19,11.16807439]
[1727271865167,7.5790664,150.23,150.19,11.16807439]
[1727271865350,6.6564,150.23,150.19,11.16807439]
[1727271865876,0.9226664,150.22,150.19,11.16807439]
[1727271867039,6.6555,150.25,150.2,6.6577]
[1727271867241,20.0,150.24,150.21,10.9107802]
[1727271867641,0.9226664,150.23,150.21,10.9107802]
[1727271868043,0.9226664,150.23,150.2,6.6577]
[1727271868261,0.9226664,150.23,150.19,34.47087439]
[1727271868649,0.9226664,150.23,150.19,23.56009419]
[1727271868853,6.6569,150.22,150.19,0.25729419]
[1727271869065,20.0,150.26,150.19,0.25729419]
[1727271869263,20.9226664,150.26,150.19,11.16807439]
[1727271869570,20.0,150.26,150.19,11.16807439]
[1727271869774,20.0,150.24,150.19,11.16807439]
[1727271869959,0.9226664,150.23,150.19,11.16807439]
[1727271870146,0.9226664,150.25,150.19,11.16807439]
[1727271870354,20.0,150.26,150.19,11.16807439]
[1727271870651,20.0,150.24,150.2,6.6573]
[1727271870860,20.9226664,150.24,150.2,6.6573]
[1727271871059,0.9226664,150.24,150.2,6.6573]
[1727271871761,6.6555,150.25,150.2,6.6573]
[1727271871960,7.5790664,150.24,150.19,17.82617439]
[1727271872670,6.6556,150.25,150.2,17.5684802]
[1727271873351,7.5786664,150.24,150.2,10.9107802]
[1727271874372,0.9226664,150.23,150.2,10.9107802]
[1727271876069,6.6556,150.25,150.2,17.5684802]
[1727271876270,26.6552,150.26,150.21,6.6572]
[1727271876782,26.6552,150.26,150.2,10.9107802]
[1727271876783,6.6556,150.25,150.2,17.5684802]
[1727271877073,26.6551,150.26,150.21,6.6571]
[1727271877377,20.9226664,150.3,150.21,10.9107802]
[1727271877550,20.0,150.28,150.2,16.6439]
[1727271877751,6.656,150.24,150.2,16.6439]
[1727271877982,0.9226664,150.23,150.2,16.6439]
[1727271878283,6.656,150.24,150.2,16.6439]
[1727271879961,6.656,150.24,150.2,23.3016]
[1727271880364,0.9226664,150.23,150.2,23.3016]
[1727271880772,6.656,150.24,150.2,23.3016]
[1727271881373,0.9226664,150.23,150.2,23.3016]
[1727271884787,6.656,150.24,150.2,23.3016]
[1727271885080,0.9226664,150.27,150.2,23.3016]
[1727271885387,6.6556,150.25,150.2,23.3015]
[1727271886263,20.0,150.28,150.23,6.6563]
[1727271886473,26.6543,150.28,150.23,17.5670802]
[1727271886986,6.6543,150.28,150.24,6.6558]
[1727271887162,6.6543,150.28,150.23,17.5670802]
[1727271887575,6.6543,150.28,150.24,6.6559]
[1727271889383,20.9226664,150.3,150.23,10.9107802]
[1727271889568,6.6545,150.28,150.23,17.5670802]
[1727271889773,0.9226664,150.27,150.23,17.5670802]
[1727271890469,7.5774664,150.27,150.22,23.2985]
[1727271890682,7.5777664,150.26,150.22,23.2985]
[1727271891882,0.9226664,150.25,150.22,34.2092802]
[1727271892081,0.9226664,150.26,150.22,34.2092802]
[1727271893768,6.6547,150.27,150.22,34.2092802]
[1727271893963,6.6547,150.27,150.22,27.5524802]
[1727271894286,0.9226664,150.26,150.22,27.5524802]
[1727271894695,0.9226664,150.26,150.22,34.2089802]
[1727271897987,6.6552,150.26,150.22,34.2089802]
[1727271898700,6.6547,150.27,150.22,34.2089802]
[1727271898892,6.94658185,150.31,150.26,10.9107802]
[1727271899089,6.6533,150.3,150.26,23.2921]
[1727271899285,1.04760608,150.32,150.23,6.4778]
[1727271899515,6.6545,150.28,150.23,29.7744]
[1727271899894,1.04760608,150.32,150.23,23.1183]
[1727271900208,6.6539,150.29,150.25,6.6555]
[1727271900392,0.9226664,150.28,150.25,6.6555]
[1727271900580,0.12493968,150.32,150.24,10.9107802]
[1727271900781,26.77763968,150.32,150.28,6.6541]
[1727271901110,6.77763968,150.32,150.27,23.2907]
[1727271901480,0.12493968,150.32,150.29,6.6536]
[1727271902182,0.12493968,150.32,150.28,17.5648802]
[1727271902989,0.12493968,150.32,150.28,10.9107802]
[1727271903306,0.12493968,150.32,150.31,6.6529]
[1727271904582,0.12493968,150.32,150.29,43.3019802]
[1727271904583,0.12493968,150.32,150.3,6.6533]
[1727271905210,0.12493968,150.32,150.29,16.6335]
[1727271905605,0.12493968,150.32,150.28,6.2189]
[1727271905983,0.12493968,150.32,150.27,6.6542]
[1727271906201,6.77733968,150.32,150.26,10.9107802]
[1727271906383,6.77733968,150.32,150.26,6.655]
[1727271906594,6.77733968,150.32,150.27,6.6546]
[1727271906903,0.12493968,150.32,150.28,18.10669125]
[1727271907283,0.12493968,150.32,150.29,6.6536]
[1727271908181,0.12493968,150.32,150.28,34.2004802]
[1727271908403,0.12493968,150.32,150.28,16.6355]
[1727271908601,0.12493968,150.32,150.29,6.6537]
[1727271909004,0.12493968,150.32,150.28,16.6355]
[1727271909509,0.12493968,150.32,150.28,23.2895]
[1727271909689,6.77753968,150.32,150.26,10.9107802]
[1727271910104,6.77753968,150.32,150.27,6.6546]
[1727271910304,6.6529,150.31,150.26,17.5657802]
[1727271910507,6.6529,150.31,150.26,6.655]
[1727271911123,6.77743968,150.32,150.27,6.6546]
[1727271911330,0.12493968,150.32,150.29,6.6537]
[1727271911814,0.12493968,150.32,150.28,6.6541]
[1727271912120,1.04760608,150.32,150.28,6.6541]
[1727271912290,7.70010608,150.32,150.27,23.2905]
[1727271912488,6.77743968,150.32,150.27,23.2905]
[1727271914111,0.12493968,150.32,150.27,16.6359]
[1727271914301,6.6529,150.31,150.27,16.6359]
[1727271914923,6.6534,150.3,150.25,22.56]
[1727271915123,6.6534,150.3,150.26,6.6551]
[1727271915919,6.653,150.31,150.26,6.6551]
[1727271916113,6.77743968,150.32,150.27,6.6544]
[1727271916491,6.6529,150.31,150.27,6.6544]
[1727271917118,0.12493968,150.32,150.25,15.9045]
[1727271917301,6.6534,150.3,150.25,15.9045]
[1727271918016,6.6538,150.29,150.23,16.6406]
[1727271918220,6.6543,150.28,150.23,16.6406]
[1727271918394,6.6546,150.27,150.23,23.2969]
[1727271919200,43.776884,150.31,150.23,23.2969]
[1727271919399,20.0,150.31,150.24,1.32611178]
[1727271919692,6.6534,150.3,150.25,6.6551]
[1727271922309,6.6538,150.29,150.25,6.6551]
[1727271922622,6.6534,150.3,150.25,6.6551]
[1727271922934,6.653,150.31,150.26,6.6547]
[1727271923430,6.6534,150.3,150.26,6.6547]
[1727271923805,6.653,150.31,150.27,6.6546]
[1727271924108,0.12493968,150.32,150.28,10.9107802]
[1727271924303,0.12493968,150.32,150.29,6.6537]
[1727271924523,0.12493968,150.32,150.29,16.634]
[1727271924833,0.12493968,150.32,150.29,23.2877]
[1727271925417,0.12493968,150.32,150.3,6.6533]
[1727271925943,0.12493968,150.32,150.29,16.634]
[1727271928212,6.77743968,150.32,150.28,6.6541]
[1727271928419,6.77743968,150.32,150.27,6.6546]
[1727271929218,6.77743968,150.32,150.28,6.6542]
[1727271929621,0.12493968,150.32,150.28,17.5649802]
[1727271929824,0.12493968,150.32,150.29,6.6537]
[1727271931737,0.12493968,150.32,150.3,27.5435802]
[1727271931907,0.12493968,150.32,150.31,6.6529]
[1727271934051,0.12493968,150.32,150.3,16.6328]
[1727271934750,0.12493968,150.32,150.27,10.9107802]
[1727271935047,0.12493968,150.32,150.28,6.6541]
[1727271935552,6.77753968,150.32,150.27,23.2912]
[1727271935742,0.12493968,150.32,150.25,32.1927802]
[1727271935947,6.6536,150.3,150.25,27.9371]
[1727271936133,6.77733968,150.32,150.27,6.6545]
[1727271936457,6.6529,150.31,150.26,23.2926]
[1727271937139,6.77743968,150.32,150.27,6.6546]
[1727271937457,0.12493968,150.32,150.27,34.6876642]
[1727271937749,0.12493968,150.32,150.27,41.3418642]
[1727271938643,0.12493968,150.32,150.27,30.431084]
[1727271939631,0.12493968,150.32,150.26,16.6376]
[1727271939934,6.6529,150.31,150.26,23.2926]
[1727271940250,6.6529,150.31,150.27,6.6546]
[1727271941062,0.9226664,150.3,150.21,21.6791]
[1727271941232,0.12493968,150.32,150.25,6.6555]
[1727271941233,6.6538,150.29,150.25,6.6555]
[1727271941434,0.12493968,150.32,150.23,10.9107802]
[1727271941650,6.653,150.31,150.25,16.6382]
[1727271941961,6.653,150.31,150.27,6.6546]
[1727271943738,0.12493968,150.32,150.25,16.6382]
[1727271943937,6.6534,150.3,150.25,23.2937]
[1727271944138,6.6534,150.3,150.26,6.6549]
[1727271945158,6.653,150.31,150.26,6.6549]
[1727271945346,0.12493968,150.32,150.26,6.6549]
[1727271945545,6.6535,150.3,150.26,6.6549]
[1727271945961,6.6535,150.3,150.27,1.32839636]
[1727271947962,6.6535,150.3,150.26,6.6549]
[1727271948746,6.653,150.31,150.27,0.51443799]
[1727271948935,6.653,150.31,150.27,7.16893799]
[1727271949470,6.77733968,150.32,150.28,6.6542]
[1727271949841,0.12493968,150.32,150.29,6.6537]
[1727271950544,0.12493968,150.32,150.3,1.33046564]
[1727271950963,0.12493968,150.32,150.27,16.636]
[1727271951140,0.12493968,150.32,150.28,6.6541]
[1727271951462,6.77753968,150.32,150.28,6.6541]
[1727271954137,0.12493968,150.32,150.26,46.043984]
[1727271954342,0.12493968,150.32,150.31,6.6529]
[1727271954541,0.12493968,150.32,150.29,16.6341]
[1727271954758,0.12493968,150.32,150.29,23.2877]
[1727271956567,0.12493968,150.32,150.3,6.6533]
[1727271958964,0.12493968,150.32,150.29,16.6341]
[1727271959142,0.12493968,150.32,150.29,23.2877]
[1727271959343,0.12493968,150.32,150.3,6.6533]
[1727271959841,0.12493968,150.32,150.31,6.6529]
[1727271960461,0.12493968,150.32,150.31,30.429784]
[1727271961377,0.12493968,150.32,150.31,6.6529]
[1727271962068,0.12493968,150.32,150.3,6.6532]
[1727271962867,0.12493968,150.32,150.29,16.6341]
[1727271963070,0.12493968,150.32,150.31,6.6529]
[1727271963746,0.12493968,150.32,150.31,31.02763089]
[1727271963975,0.12493968,150.32,150.31,30.429784]
[1727271966171,0.12493968,150.32,150.31,6.6529]
[1727271966772,0.12493968,150.32,150.3,23.776884]
[1727271966945,0.12493968,150.32,150.3,30.430084]
[1727271967670,6.77743968,150.32,150.29,16.6341]
[1727271967971,0.12493968,150.32,150.29,16.6341]
[1727271968174,6.77743968,150.32,150.27,6.6546]
[1727271968355,6.6529,150.31,150.27,6.6546]
[1727271968664,6.6529,150.31,150.26,38.9044]
[1727271968870,6.6529,150.31,150.26,29.4995]
[1727271969066,0.12493968,150.32,150.26,22.8445]
[1727271969257,0.12493968,150.32,150.26,39.87209967]
[1727271969462,0.12493968,150.32,150.29,6.6537]
[1727271969756,0.12493968,150.32,150.3,0.89957846]
[1727271970072,0.12493968,150.32,150.28,23.2889]
[1727271970250,6.77743968,150.32,150.28,16.6348]
[1727271970446,6.6532,150.31,150.26,6.655]
[1727271970652,6.6535,150.3,150.26,6.655]
[1727271973397,16.75623968,150.32,150.22,6.2492]
[1727271973685,20.12493968,150.32,150.23,33.66779967]
[1727271973854,6.6535,150.3,150.26,6.655]
[1727271974261,20.12493968,150.32,150.26,6.655]
[1727271974591,26.77773968,150.32,150.27,6.6543]
[1727271975475,0.12493968,150.32,150.29,6.6537]
[1727271975685,0.12493968,150.32,150.28,6.6541]
[1727271975990,0.12493968,150.32,150.29,6.6536]
[1727271976986,0.12493968,150.32,150.28,6.6541]
[1727271977289,0.12493968,150.32,150.27,23.2906]
[1727271977791,6.653,150.31,150.27,23.2906]
[1727271977993,6.6534,150.3,150.25,6.6551]
[1727271978296,6.6534,150.3,150.26,7.98345327]
[1727271979372,6.653,150.31,150.26,7.98345327]
[1727271979993,6.77743968,150.32,150.26,16.6371]
[1727271980570,0.12493968,150.32,150.28,6.6541]
[1727271981589,0.12493968,150.32,150.29,0.95477891]
[1727271982263,6.77743968,150.32,150.28,6.6541]
[1727271984097,6.6531,150.31,150.26,23.2921]
[1727271984887,0.12493968,150.32,150.26,16.6371]
[1727271985068,6.77743968,150.32,150.27,7.5894559]
[1727271985271,0.12493968,150.32,150.28,6.6541]
[1727271985579,0.12493968,150.32,150.29,0.93503145]
[1727271985985,0.12493968,150.32,150.29,6.6537]
[1727271986184,0.12493968,150.32,150.3,6.6529]
[1727271986408,0.12493968,150.32,150.29,23.776884]
[1727271986698,0.12493968,150.32,150.3,6.6533]
[1727271986883,0.12493968,150.32,150.29,6.6537]
[1727271988009,0.12493968,150.32,150.29,23.776884]
[1727271988176,0.12493968,150.32,150.31,6.6529]
[1727271988498,0.12493968,150.32,150.3,17.54887106]
[1727271988701,0.12493968,150.32,150.3,10.89567106]
[1727271989005,0.12493968,150.32,150.31,6.6529]
[1727271989203,0.12493968,150.32,150.3,34.18137106]
[1727271989786,0.12493968,150.32,150.31,6.6529]
[1727271989980,0.12493968,150.32,150.31,30.429784]
[1727271991191,0.12493968,150.32,150.31,41.32545506]
[1727271991395,0.2428219,150.36,150.35,30.427984]
[1727271991590,0.2428219,150.36,150.35,41.32365506]
[1727271992509,0.2428219,150.36,150.35,30.427984]
[1727272002228,0.2428219,150.36,150.35,6.6511]
[1727272003008,0.2428219,150.36,150.34,16.6284]
[1727272003336,0.2428219,150.36,150.33,6.652]
[1727272004025,0.2428219,150.36,150.31,16.6317]
[1727272004200,0.2428219,150.36,150.34,6.6515]
[1727272005101,0.2428219,150.36,150.35,6.6511]
[1727272006030,0.2428219,150.36,150.34,6.6515]
[1727272007424,0.2428219,150.36,150.33,23.2812]
[1727272007631,0.2428219,150.36,150.33,16.6293]
[1727272007800,6.8935219,150.36,150.33,16.6293]
[1727272008120,0.2428219,150.36,150.33,16.6293]
[1727272008633,6.8938219,150.36,150.31,6.6524]
[1727272009624,0.2428219,150.36,150.32,16.6305]
[1727272009808,0.2428219,150.36,150.3,17.00940042]
[1727272009809,0.2428219,150.36,150.33,23.776884]
[1727272010012,0.2428219,150.36,150.35,6.6511]
[1727272014005,0.2428219,150.36,150.35,30.427984]
[1727272023048,0.2428219,150.36,150.35,31.02775934]
[1727272024557,0.2428219,150.36,150.35,30.427984]
[1727272026345,0.2428219,150.41,150.34,33.63780042]
[1727272026346,0.2428219,150.41,150.4,30.425784]
[1727272026550,0.2428219,150.41,150.4,47.43518442]
[1727272027744,0.2428219,150.45,150.44,6.6471]
[1727272027949,0.2428219,150.45,150.44,30.423984]
[1727272028453,0.46033293,150.51,150.49,6.6449]
[1727272028627,0.46033293,150.51,150.5,7.97072661]
[1727272029021,0.46033293,150.51,150.49,6.6448]
[1727272029226,0.46033293,150.51,150.5,6.6445]
[1727272031251,0.46033293,150.51,150.48,16.6134]
[1727272031421,0.46033293,150.51,150.48,23.2587]
[1727272032454,0.46033293,150.51,150.48,16.6134]
[1727272032626,0.46033293,150.51,150.49,6.6448]
[1727272032829,0.46033293,150.51,150.5,6.6445]
[1727272035979,0.46033293,150.51,150.5,30.421384]
[1727272036538,0.46033293,150.51,150.5,31.74650789]
[1727272036766,0.46033293,150.51,150.5,30.421384]
[1727272037342,0.46033293,150.51,150.5,6.6445]
[1727272037758,0.46033293,150.51,150.5,30.421384]
[1727272038577,0.46033293,150.51,150.5,6.6445]
[1727272039675,0.46033293,150.51,150.5,30.421384]
[1727272041178,0.46033293,150.51,150.5,31.74723882]
[1727272046691,0.2428219,150.54,150.53,47.42938442]
[1727272046901,0.2428219,150.54,150.53,48.75504209]
[1727272047882,16.7596834,150.6,150.57,6.6414]
[1727272047883,16.5168615,150.6,150.57,6.6414]
[1727272048184,16.8972609,150.6,150.58,1.32521748]
[1727272048395,16.8972609,150.6,150.58,6.6409]
[1727272048781,16.8972609,150.6,150.57,23.2442]
[1727272049493,16.8972609,150.6,150.58,6.6408]
[1727272050474,16.8972609,150.6,150.58,6.6409]
[1727272051290,0.5588609,150.6,150.59,6.6405]
[1727272052291,0.5588609,150.6,150.57,17.9307389]
[1727272052484,0.5588609,150.6,150.57,16.6029]
[1727272052666,0.5588609,150.6,150.59,6.6405]
[1727272055166,0.5588609,150.6,150.59,30.417384]
[1727272056381,0.5588609,150.6,150.59,41.27071742]
[1727272058903,0.5588609,150.6,150.59,6.6405]
[1727272059196,0.5588609,150.6,150.59,30.417384]
[1727272062980,0.5588609,150.6,150.59,23.776884]
[1727272063278,0.5588609,150.6,150.59,30.417384]
[1727272071512,0.5588609,150.6,150.59,6.6405]
[1727272072710,0.5588609,150.6,150.59,30.417384]
[1727272079991,6.09e-05,150.6,150.59,36.852284]
[1727272080196,0.2970197,150.63,150.62,30.416084]
[1727272080392,0.2970197,150.63,150.62,47.36994515]
[1727272081026,0.4754812,150.69,150.63,23.776884]
[1727272081326,0.4754812,150.69,150.68,30.413384]
[1727272087024,0.4754812,150.69,150.68,41.25457606]
[1727272090716,0.4754812,150.69,150.68,30.413384]
[1727272091126,0.4754812,150.69,150.68,41.25457606]
[1727272095630,0.4754812,150.69,150.68,6.6365]
[1727272096148,0.4754812,150.69,150.67,16.5925]
[1727272096354,0.4754812,150.69,150.67,23.2294]
[1727272096527,0.4754812,150.69,150.67,16.5925]
[1727272097225,0.4754812,150.69,150.68,6.6365]
[1727272097541,0.4754812,150.69,150.68,17.47769206]
[1727272097748,0.4754812,150.69,150.68,6.6365]
[1727272098257,0.4754812,150.69,150.68,41.25457606]
[1727272098625,0.4754812,150.69,150.68,30.413384]
[1727272102127,0.4754812,150.69,150.67,23.2291]
[1727272102856,0.4754812,150.69,150.68,1.32435533]
[1727272103334,0.4754812,150.69,150.67,23.2294]
[1727272104153,6.6367,150.68,150.64,23.233]
[1727272104933,0.4754812,150.69,150.64,23.233]
[1727272105147,7.1116812,150.69,150.64,23.233]
[1727272108935,0.4754812,150.69,150.65,6.6375]
[1727272109457,0.4754812,150.69,150.65,23.776884]
[1727272109458,0.5123964,150.69,150.65,23.776884]
[1727272109647,0.5123964,150.69,150.68,6.6365]
[1727272110638,0.5123964,150.69,150.66,23.2301]
[1727272110841,0.5123964,150.69,150.67,6.6369]
[1727272111245,0.5123964,150.69,150.68,6.6365]
[1727272112459,0.5123964,150.69,150.66,23.2305]
[1727272113454,0.5123964,150.69,150.67,6.6368]
[1727272113654,0.5123964,150.69,150.68,6.6365]
[1727272113855,0.5123964,150.69,150.68,30.413384]
[1727272115673,0.5123964,150.69,150.68,36.803684]
[1727272117878,0.2715232,150.74,150.68,36.803684]
[1727272117879,0.2715232,150.74,150.73,30.411184]
[1727272128467,0.2715232,150.74,150.73,6.6343]
[1727272128995,0.2715232,150.74,150.72,16.5865]
[1727272129891,0.2715232,150.74,150.72,23.2211]
[1727272130396,6.6353,150.71,150.65,16.594]
[1727272130599,0.2715232,150.74,150.65,16.594]
[1727272130600,15.7052,150.69,150.65,16.594]
[1727272130899,15.7052,150.69,150.65,23.2318]
[1727272130900,22.3414,150.69,150.65,23.2318]
[1727272131572,22.3414,150.69,150.65,16.594]
[1727272132592,6.6365,150.68,150.64,6.6383]
[1727272133088,15.7052,150.69,150.64,6.6383]
[1727272133302,22.3414,150.69,150.64,6.6383]
[1727272134898,15.7052,150.69,150.65,23.776884]